Workbook

Sheet Worksheet
C1: =CONCATENATE("For each list, work out the median, quartiles and ",IF(B5=2,"semi-",""),"interquartile range") -> For each list, work out the median, quartiles and interquartile range
A2: Variables | Y2: median | Z2: lower quartile | AA2: upper quartile | AB2: =CONCATENATE(IF(B5=2,"semi-",""),"interquartile range") -> interquartile range
A3: SHOW ANSWERS? | B3: =AP9 -> FALSE | C3: a) | D3: 45 | E3: 50 | F3: 44 | G3: 57 | H3: 49 | I3: 48 | J3: 44 | K3: 52 | L3: 48 | M3: 50 | N3: 42
A4: Lists of numbers already in order? | B4: FALSE | D4: 42 | E4: 44 | F4: 44 | G4: 45 | H4: 48 | I4: 48 | J4: 49 | K4: 50 | L4: 50 | M4: 52 | N4: 57 | Y4: 48 | Z4: 44 | AA4: 50 | AB4: 6
A5: InterQuartile Range | B5: 1 | C5: b) | D5: 52 | E5: 54 | F5: 50 | G5: 52 | H5: 52 | I5: 51 | J5: 52 | K5: 52 | L5: 51 | M5: 49 | N5: 51 | O5: 52 | P5: 53 | Q5: 52 | R5: 52 | S5: 53 | T5: 53 | U5: 51 | V5: 51
A6: Semi InterQuartile Range | B6: FALSE | D6: 49 | E6: 50 | F6: 51 | G6: 51 | H6: 51 | I6: 51 | J6: 51 | K6: 52 | L6: 52 | M6: 52 | N6: 52 | O6: 52 | P6: 52 | Q6: 52 | R6: 52 | S6: 53 | T6: 53 | U6: 53 | V6: 54 | Y6: 52 | Z6: 51 | AA6: 52 | AB6: 1
C7: c) | D7: 25 | E7: 31 | F7: 22 | G7: 1 | H7: 35 | I7: 19 | J7: 12 | K7: 22 | L7: 33 | M7: 32 | N7: 18 | O7: 37 | P7: 27 | Q7: 21 | R7: 38 | S7: 8 | T7: 9 | U7: 14
D8: 1 | E8: 8 | F8: 9 | G8: 12 | H8: 14 | I8: 18 | J8: 19 | K8: 21 | L8: 22 | M8: 22 | N8: 25 | O8: 27 | P8: 31 | Q8: 32 | R8: 33 | S8: 35 | T8: 37 | U8: 38 | Y8: 22 | Z8: 14 | AA8: 32 | AB8: 18
C9: d) | D9: 16 | E9: 25 | F9: 23 | G9: 15 | H9: 19 | I9: 21 | J9: 14 | K9: 12 | L9: 13 | M9: 21 | N9: 15 | O9: 20 | P9: 17 | Q9: 22 | R9: 12 | S9: 16 | AP9: FALSE
D10: 12 | E10: 12 | F10: 13 | G10: 14 | H10: 15 | I10: 15 | J10: 16 | K10: 16 | L10: 17 | M10: 19 | N10: 20 | O10: 21 | P10: 21 | Q10: 22 | R10: 23 | S10: 25 | Y10: 16.5 | Z10: 14.5 | AA10: 21 | AB10: 6.5
C11: e) | D11: 25 | E11: 20 | F11: 16 | G11: 15 | H11: 7 | I11: 23 | J11: 25 | K11: 6 | L11: 18 | M11: 16 | N11: 9
D12: 6 | E12: 7 | F12: 9 | G12: 15 | H12: 16 | I12: 16 | J12: 18 | K12: 20 | L12: 23 | M12: 25 | N12: 25 | Y12: 16 | Z12: 9 | AA12: 23 | AB12: 14
C13: f) | D13: 29 | E13: 35 | F13: 26 | G13: 9 | H13: 21 | I13: 21 | J13: 12 | K13: 11 | L13: 14 | M13: 1 | N13: 6
D14: 1 | E14: 6 | F14: 9 | G14: 11 | H14: 12 | I14: 14 | J14: 21 | K14: 21 | L14: 26 | M14: 29 | N14: 35 | Y14: 14 | Z14: 9 | AA14: 26 | AB14: 17
C15: g) | D15: 96 | E15: 79 | F15: 86 | G15: 66 | H15: 102 | I15: 97 | J15: 81 | K15: 70 | L15: 90 | M15: 65 | N15: 90 | O15: 55 | P15: 62 | Q15: 81 | R15: 84 | S15: 88 | T15: 106 | U15: 91 | V15: 79 | W15: 93
D16: 55 | E16: 62 | F16: 65 | G16: 66 | H16: 70 | I16: 79 | J16: 79 | K16: 81 | L16: 81 | M16: 84 | N16: 86 | O16: 88 | P16: 90 | Q16: 90 | R16: 91 | S16: 93 | T16: 96 | U16: 97 | V16: 102 | W16: 106 | Y16: 85 | Z16: 74.5 | AA16: 92 | AB16: 17.5
C17: h) | D17: 4 | E17: 6 | F17: 6 | G17: 9 | H17: 14 | I17: 10 | J17: 1 | K17: 12 | L17: 18 | M17: 1 | N17: 6 | O17: 13 | P17: 17 | Q17: 15 | R17: 12 | S17: 5
D18: 1 | E18: 1 | F18: 4 | G18: 5 | H18: 6 | I18: 6 | J18: 6 | K18: 9 | L18: 10 | M18: 12 | N18: 12 | O18: 13 | P18: 14 | Q18: 15 | R18: 17 | S18: 18 | Y18: 9.5 | Z18: 5.5 | AA18: 13.5 | AB18: 8
C19: i) | D19: 102 | E19: 96 | F19: 100 | G19: 98 | H19: 94 | I19: 94 | J19: 102 | K19: 95 | L19: 99 | M19: 95 | N19: 84 | O19: 88
D20: 84 | E20: 88 | F20: 94 | G20: 94 | H20: 95 | I20: 95 | J20: 96 | K20: 98 | L20: 99 | M20: 100 | N20: 102 | O20: 102 | Y20: 95.5 | Z20: 94 | AA20: 99.5 | AB20: 5.5

Sheet SYSTEM FORMULAE
W1: median | X1: lower quartile | Y1: upper quartile | Z1: SIQR
A2: a) | B2: =ABS(INT(NORMINV(RAND(),$AE2,$AF2))) -> 45 | C2: =ABS(INT(NORMINV(RAND(),$AE2,$AF2))) -> 57 | D2: 24 | E2: 54 | F2: 34 | G2: 28 | H2: 43 | I2: 62 | J2: 43 | K2: 14 | L2: =IF($AD2<11,"",ABS(INT(NORMINV(RAND(),$AE2,$AF2)))) -> 30 | M2: =IF($AD2<12,"",ABS(INT(NORMINV(RAND(),$AE2,$AF2)))) -> 19 | N2: =IF($AD2<13,"",ABS(INT(NORMINV(RAND(),$AE2,$AF2)))) -> 59 | O2: =IF($AD2<14,"",ABS(INT(NORMINV(RAND(),$AE2,$AF2)))) -> 43 | P2: =IF($AD2<15,"",ABS(INT(NORMINV(RAND(),$AE2,$AF2)))) -> 65 | Q2: =IF($AD2<16,"",ABS(INT(NORMINV(RAND(),$AE2,$AF2)))) -> 32 | R2: =IF($AD2<17,"",ABS(INT(NORMINV(RAND(),$AE2,$AF2)))) -> 13 | S2: =IF($AD2<18,"",ABS(INT(NORMINV(RAND(),$AE2,$AF2)))) -> 54 | T2: =IF($AD2<19,"",ABS(INT(NORMINV(RAND(),$AE2,$AF2)))) -> 64 | U2: =IF($AD2<20,"",ABS(INT(NORMINV(RAND(),$AE2,$AF2)))) -> 34 | AD2: =RANDBETWEEN(10,20) -> 20 | AE2: =IF(RAND()<0.7,RANDBETWEEN(3,20),RANDBETWEEN(20,100)) -> 48 | AF2: =RAND()*20 -> 17.88342947
B3: =IF(ISERROR(LARGE($B2:$U2,$AD2-COLUMN()+2)),"",LARGE($B2:$U2,$AD2-COLUMN()+2)) -> 13 | C3: =IF(ISERROR(LARGE($B2:$U2,$AD2-COLUMN()+2)),"",LARGE($B2:$U2,$AD2-COLUMN()+2)) -> 14 | D3: =IF(ISERROR(LARGE($B2:$U2,$AD2-COLUMN()+2)),"",LARGE($B2:$U2,$AD2-COLUMN()+2)) -> 19 | E3: =IF(ISERROR(LARGE($B2:$U2,$AD2-COLUMN()+2)),"",LARGE($B2:$U2,$AD2-COLUMN()+2)) -> 24 | F3: =IF(ISERROR(LARGE($B2:$U2,$AD2-COLUMN()+2)),"",LARGE($B2:$U2,$AD2-COLUMN()+2)) -> 28 | G3: 30 | H3: 32 | I3: 34 | J3: 34 | K3: 43 | L3: 43 | M3: =IF(ISERROR(LARGE($B2:$U2,$AD2-COLUMN()+2)),"",LARGE($B2:$U2,$AD2-COLUMN()+2)) -> 43 | N3: 45 | O3: 54 | P3: 54 | Q3: 57 | R3: 59 | S3: 62 | T3: 64 | U3: 65 | W3: =QUARTILE($B2:$V2,2) -> 43 | X3: =IF(MOD($AD2,4)=3,OFFSET(A3,0,($AD2+1)/4),IF(MOD($AD2,4)=2,OFFSET(A3,0,($AD2+2)/4),IF(MOD($AD2,4)=1,AVERAGE(OFFSET(A3,0,($AD2-1)/4),OFFSET(A3,0,(($AD2-1)/4)+1)),AVERAGE(OFFSET(A3,0,($AD2)/4),OFFSET(A3,0,(($AD2)/4)+1))))) -> 29 | Y3: =IF(MOD($AD2,4)=3,OFFSET($A3,0,(3*($AD2+1))/4),IF(MOD($AD2,4)=2,OFFSET($A3,0,(($AD2*0.75)+0.5)),IF(MOD($AD2,4)=1,AVERAGE(OFFSET($A3,0,(($AD2*0.75)+0.25)),OFFSET($A3,0,(($AD2*0.75)+1.25))),AVERAGE(OFFSET($A3,0,($AD2*0.75)),OFFSET($A3,0,(($AD2*0.75)+1)))))) -> 55.5 | Z3: =(Y3-X3)/Worksheet!$B$5 -> 26.5 | AH3: =OFFSET(A3,0,5) -> 28
A4: b) | B4: =ABS(INT(NORMINV(RAND(),$AE4,$AF4))) -> 6 | C4: 18 | D4: 4 | E4: 17 | F4: 3 | G4: 14 | H4: 27 | I4: 11 | J4: 4 | K4: 27 | L4: =IF($AD4<11,"",ABS(INT(NORMINV(RAND(),$AE4,$AF4)))) -> 44 | M4: =IF($AD4<12,"",ABS(INT(NORMINV(RAND(),$AE4,$AF4)))) -> 19 | N4: =IF($AD4<13,"",ABS(INT(NORMINV(RAND(),$AE4,$AF4)))) -> 25 | O4: =IF($AD4<14,"",ABS(INT(NORMINV(RAND(),$AE4,$AF4)))) -> 26 | P4: =IF($AD4<15,"",ABS(INT(NORMINV(RAND(),$AE4,$AF4)))) -> 3 | Q4: =IF($AD4<16,"",ABS(INT(NORMINV(RAND(),$AE4,$AF4)))) -> 25 | R4: =IF($AD4<17,"",ABS(INT(NORMINV(RAND(),$AE4,$AF4)))) -> 19 | S4: =IF($AD4<18,"",ABS(INT(NORMINV(RAND(),$AE4,$AF4)))) -> 12 | T4: =IF($AD4<19,"",ABS(INT(NORMINV(RAND(),$AE4,$AF4)))) -> 11 | U4: =IF($AD4<20,"",ABS(INT(NORMINV(RAND(),$AE4,$AF4)))) -> 5 | AD4: =RANDBETWEEN(10,20) -> 20 | AE4: =IF(RAND()<0.7,RANDBETWEEN(3,20),RANDBETWEEN(20,100)) -> 17 | AF4: =RAND()*20 -> 13.0083574
B5: =IF(ISERROR(LARGE($B4:$U4,$AD4-COLUMN()+2)),"",LARGE($B4:$U4,$AD4-COLUMN()+2)) -> 3 | C5: 3 | D5: 4 | E5: 4 | F5: 5 | G5: 6 | H5: 11 | I5: 11 | J5: 12 | K5: 14 | L5: 17 | M5: 18 | N5: 19 | O5: 19 | P5: 25 | Q5: 25 | R5: 26 | S5: 27 | T5: 27 | U5: 44 | W5: =QUARTILE($B4:$V4,2) -> 15.5 | X5: =IF(MOD($AD4,4)=3,OFFSET(A5,0,($AD4+1)/4),IF(MOD($AD4,4)=2,OFFSET(A5,0,($AD4+2)/4),IF(MOD($AD4,4)=1,AVERAGE(OFFSET(A5,0,($AD4-1)/4),OFFSET(A5,0,(($AD4-1)/4)+1)),AVERAGE(OFFSET(A5,0,($AD4)/4),OFFSET(A5,0,(($AD4)/4)+1))))) -> 5.5 | Y5: =IF(MOD($AD4,4)=3,OFFSET($A5,0,(3*($AD4+1))/4),IF(MOD($AD4,4)=2,OFFSET($A5,0,(($AD4*0.75)+0.5)),IF(MOD($AD4,4)=1,AVERAGE(OFFSET($A5,0,(($AD4*0.75)+0.25)),OFFSET($A5,0,(($AD4*0.75)+1.25))),AVERAGE(OFFSET($A5,0,($AD4*0.75)),OFFSET($A5,0,(($AD4*0.75)+1)))))) -> 25 | Z5: =(Y5-X5)/Worksheet!$B$5 -> 19.5
A6: c) | B6: =ABS(INT(NORMINV(RAND(),$AE6,$AF6))) -> 2 | C6: 12 | D6: 3 | E6: 11 | F6: 6 | G6: 5 | H6: 6 | I6: 3 | J6: 6 | K6: 9 | L6: =IF($AD6<11,"",ABS(INT(NORMINV(RAND(),$AE6,$AF6)))) -> 5 | M6: =IF($AD6<12,"",ABS(INT(NORMINV(RAND(),$AE6,$AF6)))) -> 3 | N6: =IF($AD6<13,"",ABS(INT(NORMINV(RAND(),$AE6,$AF6)))) -> 4 | O6: =IF($AD6<14,"",ABS(INT(NORMINV(RAND(),$AE6,$AF6)))) -> 5 | P6: =IF($AD6<15,"",ABS(INT(NORMINV(RAND(),$AE6,$AF6)))) -> 2 | Q6: =IF($AD6<16,"",ABS(INT(NORMINV(RAND(),$AE6,$AF6)))) -> 8 | R6: =IF($AD6<17,"",ABS(INT(NORMINV(RAND(),$AE6,$AF6)))) -> 2 | S6: =IF($AD6<18,"",ABS(INT(NORMINV(RAND(),$AE6,$AF6)))) -> 7 | T6: =IF($AD6<19,"",ABS(INT(NORMINV(RAND(),$AE6,$AF6)))) ->  | U6: =IF($AD6<20,"",ABS(INT(NORMINV(RAND(),$AE6,$AF6)))) ->  | AD6: =RANDBETWEEN(10,20) -> 18 | AE6: =IF(RAND()<0.7,RANDBETWEEN(3,20),RANDBETWEEN(20,100)) -> 6 | AF6: =RAND()*20 -> 2.327385447
B7: =IF(ISERROR(LARGE($B6:$U6,$AD6-COLUMN()+2)),"",LARGE($B6:$U6,$AD6-COLUMN()+2)) -> 2 | C7: 2 | D7: 2 | E7: 3 | F7: 3 | G7: 3 | H7: 4 | I7: 5 | J7: 5 | K7: 5 | L7: 6 | M7: 6 | N7: 6 | O7: 7 | P7: 8 | Q7: 9 | R7: 11 | S7: 12 | W7: =QUARTILE($B6:$V6,2) -> 5 | X7: =IF(MOD($AD6,4)=3,OFFSET(A7,0,($AD6+1)/4),IF(MOD($AD6,4)=2,OFFSET(A7,0,($AD6+2)/4),IF(MOD($AD6,4)=1,AVERAGE(OFFSET(A7,0,($AD6-1)/4),OFFSET(A7,0,(($AD6-1)/4)+1)),AVERAGE(OFFSET(A7,0,($AD6)/4),OFFSET(A7,0,(($AD6)/4)+1))))) -> 3 | Y7: =IF(MOD($AD6,4)=3,OFFSET($A7,0,(3*($AD6+1))/4),IF(MOD($AD6,4)=2,OFFSET($A7,0,(($AD6*0.75)+0.5)),IF(MOD($AD6,4)=1,AVERAGE(OFFSET($A7,0,(($AD6*0.75)+0.25)),OFFSET($A7,0,(($AD6*0.75)+1.25))),AVERAGE(OFFSET($A7,0,($AD6*0.75)),OFFSET($A7,0,(($AD6*0.75)+1)))))) -> 7 | Z7: =(Y7-X7)/Worksheet!$B$5 -> 4
A8: d) | B8: =ABS(INT(NORMINV(RAND(),$AE8,$AF8))) -> 14 | C8: 19 | D8: 18 | E8: 13 | F8: 18 | G8: 13 | H8: 16 | I8: 14 | J8: 11 | K8: 16 | L8: =IF($AD8<11,"",ABS(INT(NORMINV(RAND(),$AE8,$AF8)))) -> 17 | M8: =IF($AD8<12,"",ABS(INT(NORMINV(RAND(),$AE8,$AF8)))) -> 14 | N8: =IF($AD8<13,"",ABS(INT(NORMINV(RAND(),$AE8,$AF8)))) -> 15 | O8: =IF($AD8<14,"",ABS(INT(NORMINV(RAND(),$AE8,$AF8)))) -> 20 | P8: =IF($AD8<15,"",ABS(INT(NORMINV(RAND(),$AE8,$AF8)))) -> 16 | Q8: =IF($AD8<16,"",ABS(INT(NORMINV(RAND(),$AE8,$AF8)))) ->  | R8: =IF($AD8<17,"",ABS(INT(NORMINV(RAND(),$AE8,$AF8)))) ->  | S8: =IF($AD8<18,"",ABS(INT(NORMINV(RAND(),$AE8,$AF8)))) ->  | T8: =IF($AD8<19,"",ABS(INT(NORMINV(RAND(),$AE8,$AF8)))) ->  | U8: =IF($AD8<20,"",ABS(INT(NORMINV(RAND(),$AE8,$AF8)))) ->  | AD8: =RANDBETWEEN(10,20) -> 15 | AE8: =IF(RAND()<0.7,RANDBETWEEN(3,20),RANDBETWEEN(20,100)) -> 16 | AF8: =RAND()*20 -> 2.224201492
B9: =IF(ISERROR(LARGE($B8:$U8,$AD8-COLUMN()+2)),"",LARGE($B8:$U8,$AD8-COLUMN()+2)) -> 11 | C9: 13 | D9: 13 | E9: 14 | F9: 14 | G9: 14 | H9: 15 | I9: 16 | J9: 16 | K9: 16 | L9: 17 | M9: 18 | N9: 18 | O9: 19 | P9: 20 | W9: =QUARTILE($B8:$V8,2) -> 16 | X9: =IF(MOD($AD8,4)=3,OFFSET(A9,0,($AD8+1)/4),IF(MOD($AD8,4)=2,OFFSET(A9,0,($AD8+2)/4),IF(MOD($AD8,4)=1,AVERAGE(OFFSET(A9,0,($AD8-1)/4),OFFSET(A9,0,(($AD8-1)/4)+1)),AVERAGE(OFFSET(A9,0,($AD8)/4),OFFSET(A9,0,(($AD8)/4)+1))))) -> 14 | Y9: =IF(MOD($AD8,4)=3,OFFSET($A9,0,(3*($AD8+1))/4),IF(MOD($AD8,4)=2,OFFSET($A9,0,(($AD8*0.75)+0.5)),IF(MOD($AD8,4)=1,AVERAGE(OFFSET($A9,0,(($AD8*0.75)+0.25)),OFFSET($A9,0,(($AD8*0.75)+1.25))),AVERAGE(OFFSET($A9,0,($AD8*0.75)),OFFSET($A9,0,(($AD8*0.75)+1)))))) -> 18 | Z9: =(Y9-X9)/Worksheet!$B$5 -> 4
A10: e) | B10: =ABS(INT(NORMINV(RAND(),$AE10,$AF10))) -> 19 | C10: 13 | D10: 8 | E10: 13 | F10: 15 | G10: 17 | H10: 3 | I10: 20 | J10: 33 | K10: 18 | L10: =IF($AD10<11,"",ABS(INT(NORMINV(RAND(),$AE10,$AF10)))) -> 12 | M10: =IF($AD10<12,"",ABS(INT(NORMINV(RAND(),$AE10,$AF10)))) -> 12 | N10: =IF($AD10<13,"",ABS(INT(NORMINV(RAND(),$AE10,$AF10)))) -> 15 | O10: =IF($AD10<14,"",ABS(INT(NORMINV(RAND(),$AE10,$AF10)))) -> 17 | P10: =IF($AD10<15,"",ABS(INT(NORMINV(RAND(),$AE10,$AF10)))) -> 4 | Q10: =IF($AD10<16,"",ABS(INT(NORMINV(RAND(),$AE10,$AF10)))) -> 4 | R10: =IF($AD10<17,"",ABS(INT(NORMINV(RAND(),$AE10,$AF10)))) ->  | S10: =IF($AD10<18,"",ABS(INT(NORMINV(RAND(),$AE10,$AF10)))) ->  | T10: =IF($AD10<19,"",ABS(INT(NORMINV(RAND(),$AE10,$AF10)))) ->  | U10: =IF($AD10<20,"",ABS(INT(NORMINV(RAND(),$AE10,$AF10)))) ->  | AD10: =RANDBETWEEN(10,20) -> 16 | AE10: =IF(RAND()<0.7,RANDBETWEEN(3,20),RANDBETWEEN(20,100)) -> 8 | AF10: =RAND()*20 -> 13.61889003
B11: =IF(ISERROR(LARGE($B10:$U10,$AD10-COLUMN()+2)),"",LARGE($B10:$U10,$AD10-COLUMN()+2)) -> 3 | C11: 4 | D11: 4 | E11: 8 | F11: 12 | G11: 12 | H11: 13 | I11: 13 | J11: 15 | K11: 15 | L11: 17 | M11: 17 | N11: 18 | O11: 19 | P11: 20 | Q11: 33 | W11: =QUARTILE($B10:$V10,2) -> 14 | X11: =IF(MOD($AD10,4)=3,OFFSET(A11,0,($AD10+1)/4),IF(MOD($AD10,4)=2,OFFSET(A11,0,($AD10+2)/4),IF(MOD($AD10,4)=1,AVERAGE(OFFSET(A11,0,($AD10-1)/4),OFFSET(A11,0,(($AD10-1)/4)+1)),AVERAGE(OFFSET(A11,0,($AD10)/4),OFFSET(A11,0,(($AD10)/4)+1))))) -> 10 | Y11: =IF(MOD($AD10,4)=3,OFFSET($A11,0,(3*($AD10+1))/4),IF(MOD($AD10,4)=2,OFFSET($A11,0,(($AD10*0.75)+0.5)),IF(MOD($AD10,4)=1,AVERAGE(OFFSET($A11,0,(($AD10*0.75)+0.25)),OFFSET($A11,0,(($AD10*0.75)+1.25))),AVERAGE(OFFSET($A11,0,($AD10*0.75)),OFFSET($A11,0,(($AD10*0.75)+1)))))) -> 17.5 | Z11: =(Y11-X11)/Worksheet!$B$5 -> 7.5
A12: f) | B12: =ABS(INT(NORMINV(RAND(),$AE12,$AF12))) -> 17 | C12: 23 | D12: 9 | E12: 2 | F12: 14 | G12: 11 | H12: 19 | I12: 13 | J12: 8 | K12: 21 | L12: =IF($AD12<11,"",ABS(INT(NORMINV(RAND(),$AE12,$AF12)))) -> 17 | M12: =IF($AD12<12,"",ABS(INT(NORMINV(RAND(),$AE12,$AF12)))) -> 24 | N12: =IF($AD12<13,"",ABS(INT(NORMINV(RAND(),$AE12,$AF12)))) ->  | O12: =IF($AD12<14,"",ABS(INT(NORMINV(RAND(),$AE12,$AF12)))) ->  | P12: =IF($AD12<15,"",ABS(INT(NORMINV(RAND(),$AE12,$AF12)))) ->  | Q12: =IF($AD12<16,"",ABS(INT(NORMINV(RAND(),$AE12,$AF12)))) ->  | R12: =IF($AD12<17,"",ABS(INT(NORMINV(RAND(),$AE12,$AF12)))) ->  | S12: =IF($AD12<18,"",ABS(INT(NORMINV(RAND(),$AE12,$AF12)))) ->  | T12: =IF($AD12<19,"",ABS(INT(NORMINV(RAND(),$AE12,$AF12)))) ->  | U12: =IF($AD12<20,"",ABS(INT(NORMINV(RAND(),$AE12,$AF12)))) ->  | AD12: =RANDBETWEEN(10,20) -> 12 | AE12: =IF(RAND()<0.7,RANDBETWEEN(3,20),RANDBETWEEN(20,100)) -> 19 | AF12: =RAND()*20 -> 7.971520094
B13: =IF(ISERROR(LARGE($B12:$U12,$AD12-COLUMN()+2)),"",LARGE($B12:$U12,$AD12-COLUMN()+2)) -> 2 | C13: 8 | D13: 9 | E13: 11 | F13: 13 | G13: 14 | H13: 17 | I13: 17 | J13: 19 | K13: 21 | L13: 23 | M13: 24 | W13: =QUARTILE($B12:$V12,2) -> 15.5 | X13: =IF(MOD($AD12,4)=3,OFFSET(A13,0,($AD12+1)/4),IF(MOD($AD12,4)=2,OFFSET(A13,0,($AD12+2)/4),IF(MOD($AD12,4)=1,AVERAGE(OFFSET(A13,0,($AD12-1)/4),OFFSET(A13,0,(($AD12-1)/4)+1)),AVERAGE(OFFSET(A13,0,($AD12)/4),OFFSET(A13,0,(($AD12)/4)+1))))) -> 10 | Y13: =IF(MOD($AD12,4)=3,OFFSET($A13,0,(3*($AD12+1))/4),IF(MOD($AD12,4)=2,OFFSET($A13,0,(($AD12*0.75)+0.5)),IF(MOD($AD12,4)=1,AVERAGE(OFFSET($A13,0,(($AD12*0.75)+0.25)),OFFSET($A13,0,(($AD12*0.75)+1.25))),AVERAGE(OFFSET($A13,0,($AD12*0.75)),OFFSET($A13,0,(($AD12*0.75)+1)))))) -> 20 | Z13: =(Y13-X13)/Worksheet!$B$5 -> 10
A14: g) | B14: =ABS(INT(NORMINV(RAND(),$AE14,$AF14))) -> 7 | C14: 19 | D14: 1 | E14: 8 | F14: 0 | G14: 20 | H14: 14 | I14: 1 | J14: 2 | K14: 10 | L14: =IF($AD14<11,"",ABS(INT(NORMINV(RAND(),$AE14,$AF14)))) -> 11 | M14: =IF($AD14<12,"",ABS(INT(NORMINV(RAND(),$AE14,$AF14)))) -> 6 | N14: =IF($AD14<13,"",ABS(INT(NORMINV(RAND(),$AE14,$AF14)))) -> 9 | O14: =IF($AD14<14,"",ABS(INT(NORMINV(RAND(),$AE14,$AF14)))) -> 10 | P14: =IF($AD14<15,"",ABS(INT(NORMINV(RAND(),$AE14,$AF14)))) -> 8 | Q14: =IF($AD14<16,"",ABS(INT(NORMINV(RAND(),$AE14,$AF14)))) -> 13 | R14: =IF($AD14<17,"",ABS(INT(NORMINV(RAND(),$AE14,$AF14)))) -> 5 | S14: =IF($AD14<18,"",ABS(INT(NORMINV(RAND(),$AE14,$AF14)))) ->  | T14: =IF($AD14<19,"",ABS(INT(NORMINV(RAND(),$AE14,$AF14)))) ->  | U14: =IF($AD14<20,"",ABS(INT(NORMINV(RAND(),$AE14,$AF14)))) ->  | AD14: =RANDBETWEEN(10,20) -> 17 | AE14: =IF(RAND()<0.7,RANDBETWEEN(3,20),RANDBETWEEN(20,100)) -> 6 | AF14: =RAND()*20 -> 5.826445229
B15: =IF(ISERROR(LARGE($B14:$U14,$AD14-COLUMN()+2)),"",LARGE($B14:$U14,$AD14-COLUMN()+2)) -> 0 | C15: 1 | D15: 1 | E15: 2 | F15: 5 | G15: 6 | H15: 7 | I15: 8 | J15: 8 | K15: 9 | L15: 10 | M15: 10 | N15: 11 | O15: 13 | P15: 14 | Q15: 19 | R15: 20 | W15: =QUARTILE($B14:$V14,2) -> 8 | X15: =IF(MOD($AD14,4)=3,OFFSET(A15,0,($AD14+1)/4),IF(MOD($AD14,4)=2,OFFSET(A15,0,($AD14+2)/4),IF(MOD($AD14,4)=1,AVERAGE(OFFSET(A15,0,($AD14-1)/4),OFFSET(A15,0,(($AD14-1)/4)+1)),AVERAGE(OFFSET(A15,0,($AD14)/4),OFFSET(A15,0,(($AD14)/4)+1))))) -> 3.5 | Y15: =IF(MOD($AD14,4)=3,OFFSET($A15,0,(3*($AD14+1))/4),IF(MOD($AD14,4)=2,OFFSET($A15,0,(($AD14*0.75)+0.5)),IF(MOD($AD14,4)=1,AVERAGE(OFFSET($A15,0,(($AD14*0.75)+0.25)),OFFSET($A15,0,(($AD14*0.75)+1.25))),AVERAGE(OFFSET($A15,0,($AD14*0.75)),OFFSET($A15,0,(($AD14*0.75)+1)))))) -> 12 | Z15: =(Y15-X15)/Worksheet!$B$5 -> 8.5
A16: h) | B16: =ABS(INT(NORMINV(RAND(),$AE16,$AF16))) -> 9 | C16: 2 | D16: 2 | E16: 4 | F16: 22 | G16: 1 | H16: 9 | I16: 23 | J16: 3 | K16: 13 | L16: =IF($AD16<11,"",ABS(INT(NORMINV(RAND(),$AE16,$AF16)))) -> 11 | M16: =IF($AD16<12,"",ABS(INT(NORMINV(RAND(),$AE16,$AF16)))) -> 21 | N16: =IF($AD16<13,"",ABS(INT(NORMINV(RAND(),$AE16,$AF16)))) -> 4 | O16: =IF($AD16<14,"",ABS(INT(NORMINV(RAND(),$AE16,$AF16)))) -> 15 | P16: =IF($AD16<15,"",ABS(INT(NORMINV(RAND(),$AE16,$AF16)))) -> 5 | Q16: =IF($AD16<16,"",ABS(INT(NORMINV(RAND(),$AE16,$AF16)))) -> 16 | R16: =IF($AD16<17,"",ABS(INT(NORMINV(RAND(),$AE16,$AF16)))) -> 35 | S16: =IF($AD16<18,"",ABS(INT(NORMINV(RAND(),$AE16,$AF16)))) ->  | T16: =IF($AD16<19,"",ABS(INT(NORMINV(RAND(),$AE16,$AF16)))) ->  | U16: =IF($AD16<20,"",ABS(INT(NORMINV(RAND(),$AE16,$AF16)))) ->  | AD16: =RANDBETWEEN(10,20) -> 17 | AE16: =IF(RAND()<0.7,RANDBETWEEN(3,20),RANDBETWEEN(20,100)) -> 6 | AF16: =RAND()*20 -> 16.00729269
B17: =IF(ISERROR(LARGE($B16:$U16,$AD16-COLUMN()+2)),"",LARGE($B16:$U16,$AD16-COLUMN()+2)) -> 1 | C17: 2 | D17: 2 | E17: 3 | F17: 4 | G17: 4 | H17: 5 | I17: 9 | J17: 9 | K17: 11 | L17: 13 | M17: 15 | N17: 16 | O17: 21 | P17: 22 | Q17: 23 | R17: 35 | W17: =QUARTILE($B16:$V16,2) -> 9 | X17: =IF(MOD($AD16,4)=3,OFFSET(A17,0,($AD16+1)/4),IF(MOD($AD16,4)=2,OFFSET(A17,0,($AD16+2)/4),IF(MOD($AD16,4)=1,AVERAGE(OFFSET(A17,0,($AD16-1)/4),OFFSET(A17,0,(($AD16-1)/4)+1)),AVERAGE(OFFSET(A17,0,($AD16)/4),OFFSET(A17,0,(($AD16)/4)+1))))) -> 3.5 | Y17: =IF(MOD($AD16,4)=3,OFFSET($A17,0,(3*($AD16+1))/4),IF(MOD($AD16,4)=2,OFFSET($A17,0,(($AD16*0.75)+0.5)),IF(MOD($AD16,4)=1,AVERAGE(OFFSET($A17,0,(($AD16*0.75)+0.25)),OFFSET($A17,0,(($AD16*0.75)+1.25))),AVERAGE(OFFSET($A17,0,($AD16*0.75)),OFFSET($A17,0,(($AD16*0.75)+1)))))) -> 18.5 | Z17: =(Y17-X17)/Worksheet!$B$5 -> 15
A18: i) | B18: =ABS(INT(NORMINV(RAND(),$AE18,$AF18))) -> 5 | C18: 12 | D18: 40 | E18: 42 | F18: 33 | G18: 47 | H18: 30 | I18: 43 | J18: 13 | K18: 38 | L18: =IF($AD18<11,"",ABS(INT(NORMINV(RAND(),$AE18,$AF18)))) -> 19 | M18: =IF($AD18<12,"",ABS(INT(NORMINV(RAND(),$AE18,$AF18)))) -> 23 | N18: =IF($AD18<13,"",ABS(INT(NORMINV(RAND(),$AE18,$AF18)))) -> 41 | O18: =IF($AD18<14,"",ABS(INT(NORMINV(RAND(),$AE18,$AF18)))) -> 9 | P18: =IF($AD18<15,"",ABS(INT(NORMINV(RAND(),$AE18,$AF18)))) -> 31 | Q18: =IF($AD18<16,"",ABS(INT(NORMINV(RAND(),$AE18,$AF18)))) -> 17 | R18: =IF($AD18<17,"",ABS(INT(NORMINV(RAND(),$AE18,$AF18)))) -> 21 | S18: =IF($AD18<18,"",ABS(INT(NORMINV(RAND(),$AE18,$AF18)))) ->  | T18: =IF($AD18<19,"",ABS(INT(NORMINV(RAND(),$AE18,$AF18)))) ->  | U18: =IF($AD18<20,"",ABS(INT(NORMINV(RAND(),$AE18,$AF18)))) ->  | AD18: =RANDBETWEEN(10,20) -> 17 | AE18: =IF(RAND()<0.7,RANDBETWEEN(3,20),RANDBETWEEN(20,100)) -> 19 | AF18: =RAND()*20 -> 15.16251288
B19: =IF(ISERROR(LARGE($B18:$U18,$AD18-COLUMN()+2)),"",LARGE($B18:$U18,$AD18-COLUMN()+2)) -> 5 | C19: 9 | D19: 12 | E19: 13 | F19: 17 | G19: 19 | H19: 21 | I19: 23 | J19: 30 | K19: 31 | L19: 33 | M19: 38 | N19: 40 | O19: 41 | P19: 42 | Q19: 43 | R19: 47 | W19: =QUARTILE($B18:$V18,2) -> 30 | X19: =IF(MOD($AD18,4)=3,OFFSET(A19,0,($AD18+1)/4),IF(MOD($AD18,4)=2,OFFSET(A19,0,($AD18+2)/4),IF(MOD($AD18,4)=1,AVERAGE(OFFSET(A19,0,($AD18-1)/4),OFFSET(A19,0,(($AD18-1)/4)+1)),AVERAGE(OFFSET(A19,0,($AD18)/4),OFFSET(A19,0,(($AD18)/4)+1))))) -> 15 | Y19: =IF(MOD($AD18,4)=3,OFFSET($A19,0,(3*($AD18+1))/4),IF(MOD($AD18,4)=2,OFFSET($A19,0,(($AD18*0.75)+0.5)),IF(MOD($AD18,4)=1,AVERAGE(OFFSET($A19,0,(($AD18*0.75)+0.25)),OFFSET($A19,0,(($AD18*0.75)+1.25))),AVERAGE(OFFSET($A19,0,($AD18*0.75)),OFFSET($A19,0,(($AD18*0.75)+1)))))) -> 40.5 | Z19: =(Y19-X19)/Worksheet!$B$5 -> 25.5
